[Event "55th Rubinstein Memorial-C 2019"]
[Site "Polanica-Zdroj"]
[Date "2019.08.25"]
[Round "9.22"]
[White "Kazmierowski, Tymon"]
[Black "Burdzicki, Jan"]
[Result "1-0"]
[ECO "D30"]
[WhiteElo "1532"]
[BlackElo "1716"]
[Annotator "NA"]
[PlyCount "119"]
[EventDate "2019.08.17"]
[EventType "swiss"]
[EventCountry "POL"]
[SourceTitle "playchess.com"]
[Source "ChessBase"]
[SourceQuality "1"]
[TimeControl "40/5400+30:1800+30"]

1. d4 {[%emt 0:00:00]} d5 {[%emt 0:07:33]} 2. c4 {[%emt 0:00:00]} e6 {[%emt 0:00:11]} 3. Nf3 {[%emt 0:00:00]} Nf6 {[%emt 0:00:24]} 4. g3 {[%emt 0:00:00]} Bb4+ {[%emt 0:01:04]} 5. Bd2 {[%emt 0:00:03]} Be7 {[%emt 0:00:15]} 6. Bg2 {[%emt 0:00:08]} O-O {[%emt 0:00:51]} 7. O-O {[%emt 0:00:08]} b6 {[%emt 0:05:12]} 8. Bf4 {[%emt 0:03:57]} Bb7 {[%emt 0:01:28]} 9. Nbd2 {[%emt 0:00:10]} dxc4 {[%emt 0:02:07]} 10. Nxc4 {[%emt 0:01:12]} Nd5 {[%emt 0:04:40]} 11. Nfe5 {[%emt 0:05:06]} f6 {[%emt 0:02:36]} 12. Nd3 {[%emt 0:08:37]} Nc6 {[%emt 0:05:49]} 13. Bd2 {[%emt 0:02:50]} b5 {[%emt 0:10:30]} 14. Na5 {[%emt 0:01:58]} Nxa5 {[%emt 0:02:30]} 15. Bxa5 {[%emt 0:00:06]} Rb8 {[%emt 0:08:11]} 16. Rc1 {[%emt 0:01:52]} Nb6 {[%emt 0:03:55]} 17. Bxb7 {[%emt 0:01:18]} Rxb7 {[%emt 0:00:01]} 18. Nc5 {[%emt 0:00:43]} Bxc5 {[%emt 0:00:59]} 19. dxc5 {[%emt 0:00:04]} Na8 {[%emt 0:05:50]} 20. Qb3 {[%emt 0:06:41]} Qd5 {[%emt 0:10:36]} 21. Rfd1 {[%emt 0:03:16]} Qxb3 {[%emt 0:04:42]} 22. axb3 {[%emt 0:00:05]} Rbb8 {[%emt 0:11:08]} 23. Rd7 {[%emt 0:04:23]} Rbd8 {[%emt 0:01:08]} 24. Rcd1 {[%emt 0:03:12]} Rxd7 {[%emt 0:00:25]} 25. Rxd7 {[%emt 0:00:07]} Rf7 {[%emt 0:00:36]} 26. Rd4 {[%emt 0:06:07]} g6 {[%emt 0:01:24]} 27. Kg2 {[%emt 0:01:29]} Rf8 {[%emt 0:01:56]} 28. Bd2 {[%emt 0:03:51]} g5 {[%emt 0:00:39]} 29. h4 {[%emt 0:02:19]} h6 {[%emt 0:00:31]} 30. hxg5 {[%emt 0:00:47]} hxg5 {[%emt 0:00:01]} 31. Bc3 {[%emt 0:01:42]} Kf7 {[%emt 0:01:17]} 32. Rd7+ {[%emt 0:01:59]} Ke8 {[%emt 0:00:05]} 33. Rg7 {[%emt 0:01:56]} e5 {[%emt 0:00:54]} 34. Kf3 {[%emt 0:01:03]} Rf7 {[%emt 0:00:26]} 35. Rg8+ {[%emt 0:00:04]} Rf8 {[%emt 0:00:08]} 36. Rxf8+ {[%emt 0:01:50]} Kxf8 {[%emt 0:00:01]} 37. Ke4 {[%emt 0:00:11]} c6 {[%emt 0:00:42]} 38. Ba5 {[%emt 0:00:16]} Kf7 {[%emt 0:01:47]} 39. Kf5 {[%emt 0:00:24]} Ke7 {[%emt 0:01:56]} 40. g4 {[%emt 0:00:38]} e4 {[%emt 0:00:46]} 41. Kxe4 {[%emt 0:30:44]} Ke6 {[%emt 0:30:05]} 42. e3 {[%emt 0:00:08]} b4 {[%emt 0:00:25]} 43. f3 {[%emt 0:00:24]} a6 {[%emt 0:00:07]} 44. f4 {[%emt 0:00:09]} gxf4 {[%emt 0:00:19]} 45. exf4 {[%emt 0:00:05]} Ke7 {[%emt 0:01:03]} 46. g5 {[%emt 0:00:11]} fxg5 {[%emt 0:00:40]} 47. fxg5 {[%emt 0:00:06]} Ke6 {[%emt 0:00:13]} 48. Kf4 {[%emt 0:00:24]} Kf7 {[%emt 0:01:27]} 49. Ke5 {[%emt 0:00:07]} Kg6 {[%emt 0:00:10]} 50. Kd6 {[%emt 0:00:06]} Kxg5 {[%emt 0:00:11]} 51. Kxc6 {[%emt 0:00:05]} Kf4 {[%emt 0:00:28]} 52. Kb7 {[%emt 0:00:05]} Nc7 {[%emt 0:00:42]} 53. Bxc7+ {[%emt 0:00:22]} Ke4 {[%emt 0:00:24]} 54. Be5 {[%emt 0:00:16]} Kd3 {[%emt 0:00:55]} 55. c6 {[%emt 0:00:12]} Kc2 {[%emt 0:00:20]} 56. c7 {[%emt 0:00:08]} Kxb3 {[%emt 0:00:04]} 57. c8=Q {[%emt 0:00:07]} a5 {[%emt 0:00:04]} 58. Kb6 {[%emt 0:00:24]} a4 {[%emt 0:00:04]} 59. Kb5 {[%emt 0:00:06]} Ka2 {[%emt 0:00:32]} 60. b3 {[%emt 0:01:32]} 1-0

[Event "55th Rubinstein Memorial-C 2019"]
[Site "Polanica-Zdroj"]
[Date "2019.08.25"]
[Round "9.23"]
[White "Maslo, Slawomir"]
[Black "Wilgosz, Tomasz"]
[Result "1-0"]
[ECO "A13"]
[WhiteElo "1687"]
[BlackElo "1513"]
[Annotator "NA"]
[PlyCount "165"]
[EventDate "2019.08.17"]
[EventType "swiss"]
[EventCountry "POL"]
[SourceTitle "playchess.com"]
[Source "ChessBase"]
[SourceQuality "1"]
[TimeControl "40/5400+30:1800+30"]

1. c4 e6 2. g3 d5 3. Bg2 Nf6 4. Nf3 c5 5. cxd5 exd5 6. d4 Nc6 7. O-O cxd4 8. Nxd4 Bc5 9. Nxc6 bxc6 10. Nc3 O-O 11. Bg5 h6 12. Bxf6 Qxf6 13. Nxd5 Qxb2 14. Nf4 Ba6 15. Bxc6 Rac8 16. Bf3 Rfe8 17. Nd3 Bxd3 18. Qxd3 Red8 19. Qf5 Bd4 20. Bd5 Bf6 21. Rab1 Qe5 22. Qxe5 Bxe5 23. e4 Rd7 24. Rb5 Bd4 25. Rd1 Bb6 26. Rd2 Kf8 27. Kg2 g5 28. g4 Kg7 29. a4 Rdc7 30. a5 Rc5 31. Rdb2 Bxa5 32. Rxc5 Rxc5 33. h4 Bb6 34. hxg5 hxg5 35. Rb3 Rc2 36. Rf3 f6 37. Rf5 Bd4 38. Be6 Re2 39. Bd5 Kg6 40. Kf1 Rc2 41. Bb3 Rc3 42. Be6 Be5 43. Ke2 a5 44. Kd2 Rc5 45. Rf3 Kg7 46. Rd3 Rb5 47. Rd7+ Kf8 48. Rf7+ Ke8 49. Ra7 Rc5 50. f3 Rc7 51. Ra6 Ke7 52. Bd5 Rc5 53. Bb3 Kd7 54. Bd5 Kc7 55. Kd3 Rc3+ 56. Ke2 Ra3 57. Bc6 Kd6 58. Be8+ Kc5 59. Rc6+ Kd4 60. Bf7 Ra4 61. Kd2 Rb4 62. Rc2 Bf4+ 63. Ke2 a4 64. Ra2 Kc3 65. Be8 Kb3 66. Bf7+ Kc3 67. Ra3+ Kb2 68. Ra2+ Kb1 69. Kd3 Bc1 70. Kc3 Rb7 71. Bd5 Bb2+ 72. Kd3 a3 73. Ke3 Kc2 74. Bxb7 Kc3 75. Bd5 Kb4 76. f4 gxf4+ 77. Kxf4 Kc5 78. Kf5 Kd6 79. Rxb2 axb2 80. Ba2 Ke7 81. e5 fxe5 82. Kxe5 Kf8 83. Ke4 1-0

[Event "55th Rubinstein Memorial-C 2019"]
[Site "Polanica-Zdroj"]
[Date "2019.08.25"]
[Round "9.24"]
[White "Szandurski, Radoslaw"]
[Black "Hasterok, Lukasz"]
[Result "1/2-1/2"]
[ECO "B13"]
[WhiteElo "1681"]
[BlackElo "1531"]
[Annotator "NA"]
[PlyCount "135"]
[EventDate "2019.08.17"]
[EventType "swiss"]
[EventCountry "POL"]
[SourceTitle "playchess.com"]
[Source "ChessBase"]
[SourceQuality "1"]
[TimeControl "40/5400+30:1800+30"]

1. e4 {[%emt 0:00:00]} c6 {[%emt 0:00:00]} 2. d4 {[%emt 0:00:00]} d5 {[%emt 0:00:00]} 3. exd5 {[%emt 0:00:00]} cxd5 {[%emt 0:00:00]} 4. Nf3 {[%emt 0:00:19]} Bg4 {[%emt 0:00:35]} 5. c4 {[%emt 0:01:57]} Nf6 {[%emt 0:00:41]} 6. Nc3 {[%emt 0:00:33]} e6 {[%emt 0:01:01]} 7. Be2 {[%emt 0:01:24]} Nc6 {[%emt 0:01:04]} 8. O-O {[%emt 0:00:17]} a6 {[%emt 0:05:13]} 9. Be3 {[%emt 0:03:17]} Be7 {[%emt 0:01:04]} 10. Rc1 {[%emt 0:01:19]} O-O {[%emt 0:05:07]} 11. h3 {[%emt 0:04:12]} Bxf3 {[%emt 0:01:04]} 12. Bxf3 {[%emt 0:00:39]} Rc8 {[%emt 0:00:41]} 13. cxd5 {[%emt 0:01:00]} Nxd5 {[%emt 0:00:15]} 14. Nxd5 {[%emt 0:00:17]} exd5 {[%emt 0:00:19]} 15. Qb3 {[%emt 0:00:56]} Bf6 {[%emt 0:03:03]} 16. Rfd1 {[%emt 0:05:24]} Nxd4 {[%emt 0:02:48]} 17. Bxd4 {[%emt 0:02:21]} Rxc1 {[%emt 0:00:16]} 18. Rxc1 {[%emt 0:00:32]} Bxd4 {[%emt 0:00:23]} 19. Qxb7 {[%emt 0:01:37]} Qf6 {[%emt 0:00:51]} 20. b3 {[%emt 0:02:13]} Bb2 {[%emt 0:05:29]} 21. Rc2 {[%emt 0:06:31]} Rd8 {[%emt 0:02:46]} 22. Bxd5 {[%emt 0:07:50]} Qe5 {[%emt 0:06:44]} 23. Qxf7+ {[%emt 0:05:13]} Kh8 {[%emt 0:00:07]} 24. Qf3 {[%emt 0:00:26]} h6 {[%emt 0:00:46]} 25. Qe2 {[%emt 0:06:51]} Rxd5 {[%emt 0:01:42]} 26. Rxb2 {[%emt 0:01:02]} Qd6 {[%emt 0:00:28]} 27. Rb1 {[%emt 0:00:37]} Rd2 {[%emt 0:02:29]} 28. Qe8+ {[%emt 0:02:03]} Kh7 {[%emt 0:00:04]} 29. Qe4+ {[%emt 0:00:34]} Kh8 {[%emt 0:01:01]} 30. a4 {[%emt 0:02:42]} Rd1+ {[%emt 0:01:36]} 31. Rxd1 {[%emt 0:03:19]} Qxd1+ {[%emt 0:00:24]} 32. Kh2 {[%emt 0:00:05]} Qd6+ {[%emt 0:01:26]} 33. g3 {[%emt 0:00:42]} Qb6 {[%emt 0:00:04]} 34. Qe3 {[%emt 0:00:52]} Qb4 {[%emt 0:00:37]} 35. Qf3 {[%emt 0:01:34]} a5 {[%emt 0:00:21]} 36. Qd5 {[%emt 0:00:38]} Qe1 {[%emt 0:00:43]} 37. Kg2 {[%emt 0:00:09]} Qb4 {[%emt 0:01:26]} 38. g4 {[%emt 0:02:44]} Qc3 {[%emt 0:00:44]} 39. Qf3 {[%emt 0:01:28]} Qb4 {[%emt 0:00:21]} 40. h4 {[%emt 0:00:20]} Qd2 {[%emt 0:01:02]} 41. g5 {[%emt 0:33:41]} hxg5 {[%emt 0:30:16]} 42. Qh5+ {[%emt 0:03:21]} Kg8 {[%emt 0:00:08]} 43. Qxg5 {[%emt 0:00:31]} Qb4 {[%emt 0:01:48]} 44. Qg3 {[%emt 0:00:55]} Qe4+ {[%emt 0:02:59]} 45. Kh2 {[%emt 0:00:26]} Qb4 {[%emt 0:00:42]} 46. h5 {[%emt 0:01:44]} Kh7 {[%emt 0:02:37]} 47. Kh3 {[%emt 0:03:42]} Qd2 {[%emt 0:00:53]} 48. f4 {[%emt 0:01:29]} Qd7+ {[%emt 0:00:47]} 49. Qg4 {[%emt 0:01:12]} Qd3+ {[%emt 0:00:11]} 50. Kh4 {[%emt 0:00:26]} Qxb3 {[%emt 0:02:08]} 51. Qf5+ {[%emt 0:00:52]} Kh8 {[%emt 0:00:45]} 52. Qxa5 {[%emt 0:01:08]} Qf3 {[%emt 0:00:25]} 53. Qd8+ {[%emt 0:02:07]} Kh7 {[%emt 0:00:28]} 54. Qg5 {[%emt 0:01:09]} Qh1+ {[%emt 0:00:24]} 55. Kg4 {[%emt 0:00:20]} Qd1+ {[%emt 0:00:10]} 56. Kh4 {[%emt 0:00:39]} Qh1+ {[%emt 0:01:28]} 57. Kg4 {[%emt 0:00:34]} Qd1+ {[%emt 0:00:06]} 58. Kf5 {[%emt 0:00:22]} Qxa4 {[%emt 0:00:53]} 59. Qg6+ {[%emt 0:00:16]} Kh8 {[%emt 0:00:07]} 60. Qe6 {[%emt 0:00:40]} Qb5+ {[%emt 0:01:00]} 61. Kg6 {[%emt 0:00:36]} Qd3+ {[%emt 0:01:52]} 62. Kf7 {[%emt 0:01:36]} Qg6+ {[%emt 0:02:52]} 63. Ke7 {[%emt 0:00:26]} Qxh5 {[%emt 0:01:02]} 64. Qc8+ {[%emt 0:01:57]} Kh7 {[%emt 0:00:28]} 65. Qc2+ {[%emt 0:00:42]} Qg6 {[%emt 0:05:38]} 66. Qh2+ {[%emt 0:01:17]} Kg8 {[%emt 0:00:59]} 67. Qa2+ {[%emt 0:00:46]} Kh7 {[%emt 0:00:15]} 68. Qh2+ {Qf5} 1/2-1/2

[Event "55th Rubinstein Memorial-C 2019"]
[Site "Polanica-Zdroj"]
[Date "2019.08.25"]
[Round "9.25"]
[White "Topola, Rafal"]
[Black "Arciszewska, Zuzanna"]
[Result "1/2-1/2"]
[ECO "C50"]
[WhiteElo "1660"]
[BlackElo "1499"]
[Annotator "NA"]
[PlyCount "95"]
[EventDate "2019.08.17"]
[EventType "swiss"]
[EventCountry "POL"]
[SourceTitle "playchess.com"]
[Source "ChessBase"]
[SourceQuality "1"]
[TimeControl "40/5400+30:1800+30"]

1. e4 {[%emt 0:00:00]} e5 {[%emt 0:00:00]} 2. Nf3 {[%emt 0:00:00]} Nc6 {[%emt 0:00:00]} 3. Bc4 {[%emt 0:00:05]} Bc5 {[%emt 0:00:09]} 4. O-O {[%emt 0:00:20]} Nf6 {[%emt 0:00:43]} 5. d3 {[%emt 0:00:27]} h6 {[%emt 0:03:09]} 6. c3 {[%emt 0:00:29]} d6 {[%emt 0:01:59]} 7. Bb3 {[%emt 0:02:33]} O-O {[%emt 0:02:34]} 8. h3 {[%emt 0:00:44]} a6 {[%emt 0:01:32]} 9. Re1 {[%emt 0:01:17]} Be6 {[%emt 0:04:32]} 10. Bc2 {[%emt 0:00:22]} Ba7 {[%emt 0:01:53]} 11. Nbd2 {[%emt 0:05:40]} Re8 {[%emt 0:03:54]} 12. Nf1 {[%emt 0:00:35]} d5 {[%emt 0:02:03]} 13. exd5 {[%emt 0:03:11]} Bxd5 {[%emt 0:01:20]} 14. Be3 {[%emt 0:00:42]} Bxe3 {[%emt 0:05:59]} 15. Nxe3 {[%emt 0:00:02]} Qd7 {[%emt 0:06:08]} 16. Nxd5 {[%emt 0:02:10]} Nxd5 {[%emt 0:00:13]} 17. Qd2 {[%emt 0:01:51]} Rad8 {[%emt 0:02:04]} 18. Rad1 {[%emt 0:00:39]} Nf6 {[%emt 0:01:36]} 19. Qc1 {[%emt 0:02:54]} Qc8 {[%emt 0:01:34]} 20. Re2 {[%emt 0:00:49]} Re7 {[%emt 0:02:10]} 21. Rde1 {[%emt 0:00:34]} Rde8 {[%emt 0:00:50]} 22. d4 {[%emt 0:11:51]} exd4 {[%emt 0:02:39]} 23. Rxe7 {[%emt 0:00:17]} Rxe7 {[%emt 0:00:07]} 24. Rxe7 {[%emt 0:00:05]} Nxe7 {[%emt 0:00:14]} 25. Nxd4 {[%emt 0:00:04]} c5 {[%emt 0:02:55]} 26. Ne2 {[%emt 0:00:28]} Qe6 {[%emt 0:01:14]} 27. Qd2 {[%emt 0:01:25]} Nc6 {[%emt 0:02:49]} 28. Bb3 {[%emt 0:01:57]} Qf5 {[%emt 0:03:16]} 29. Ng3 {[%emt 0:03:45]} Qd7 {[%emt 0:01:21]} 30. Qxd7 {[%emt 0:01:08]} Nxd7 {[%emt 0:00:03]} 31. Ne4 {[%emt 0:01:30]} Kf8 {[%emt 0:03:32]} 32. Bd5 {[%emt 0:03:40]} Nd8 {[%emt 0:00:41]} 33. Kf1 {[%emt 0:02:24]} Ke7 {[%emt 0:00:32]} 34. Ke2 {[%emt 0:00:43]} Nf6 {[%emt 0:02:11]} 35. Nxf6 {[%emt 0:00:24]} Kxf6 {[%emt 0:00:02]} 36. Kd3 {[%emt 0:00:18]} Ke5 {[%emt 0:01:57]} 37. Bf3 {[%emt 0:00:56]} b6 {[%emt 0:02:20]} 38. b4 {[%emt 0:01:57]} Kd6 {[%emt 0:02:27]} 39. h4 {[%emt 0:04:04]} Nc6 {[%emt 0:02:16]} 40. bxc5+ {[%emt 0:03:12]} Kxc5 {[%emt 0:00:12]} 41. Bxc6 {[%emt 0:30:09]} Kxc6 {[%emt 0:30:02]} 42. Kc4 {[%emt 0:00:12]} h5 {[%emt 0:02:14]} 43. a3 {[%emt 0:03:38]} b5+ {[%emt 0:02:00]} 44. Kb4 {[%emt 0:02:29]} Kb6 {[%emt 0:00:42]} 45. c4 {[%emt 0:00:41]} a5+ {[%emt 0:00:37]} 46. Kc3 {[%emt 0:00:49]} Kc5 {[%emt 0:00:16]} 47. cxb5 {[%emt 0:00:05]} Kxb5 {[%emt 0:00:10]} 48. Kb3 {[%emt 0:01:16]} 1/2-1/2

[Event "55th Rubinstein Memorial-C 2019"]
[Site "Polanica-Zdroj"]
[Date "2019.08.25"]
[Round "9.26"]
[White "Wianecki, Mateusz"]
[Black "Ursnik, Patryk"]
[Result "0-1"]
[ECO "A01"]
[WhiteElo "1634"]
[BlackElo "1497"]
[Annotator "NA"]
[PlyCount "34"]
[EventDate "2019.08.17"]
[EventType "swiss"]
[EventCountry "POL"]
[SourceTitle "playchess.com"]
[Source "ChessBase"]
[SourceQuality "1"]
[TimeControl "40/5400+30:1800+30"]

1. b3 {[%emt 0:05:32]} e5 {[%emt 0:00:00]} 2. Bb2 {[%emt 0:00:02]} Nc6 {[%emt 0:00:00]} 3. e3 {[%emt 0:00:03]} d5 {[%emt 0:00:05]} 4. Bb5 {[%emt 0:00:04]} Bd6 {[%emt 0:00:16]} 5. f4 {[%emt 0:00:03]} f6 {[%emt 0:05:55]} 6. fxe5 {[%emt 0:00:17]} fxe5 {[%emt 0:02:30]} 7. Nf3 {[%emt 0:00:33]} Bg4 {[%emt 0:01:12]} 8. O-O {[%emt 0:03:31]} Nf6 {[%emt 0:02:03]} 9. h3 {[%emt 0:00:06]} Bxf3 {[%emt 0:00:40]} 10. Qxf3 {[%emt 0:00:25]} O-O {[%emt 0:00:06]} 11. Bxc6 {[%emt 0:02:47]} bxc6 {[%emt 0:00:11]} 12. c4 {[%emt 0:00:25]} Ne4 {[%emt 0:00:57]} 13. Qg4 {[%emt 0:03:20]} Rxf1+ {[%emt 0:01:05]} 14. Kxf1 {[%emt 0:00:01]} Qf6+ {[%emt 0:00:33]} 15. Ke2 {[%emt 0:04:21]} Rf8 {[%emt 0:01:07]} 16. Qf3 {[%emt 0:01:39]} Qg6 {[%emt 0:03:56]} 17. Qg4 {[%emt 0:00:12]} Ng3+ {[%emt 0:00:20]} 0-1

[Event "55th Rubinstein Memorial-C 2019"]
[Site "Polanica-Zdroj"]
[Date "2019.08.25"]
[Round "9.27"]
[White "Bugaj, Hanna"]
[Black "Panczuk, Grzegorz"]
[Result "1-0"]
[ECO "E73"]
[WhiteElo "1622"]
[BlackElo "1494"]
[Annotator "NA"]
[PlyCount "116"]
[EventDate "2019.08.17"]
[EventType "swiss"]
[EventCountry "POL"]
[SourceTitle "playchess.com"]
[Source "ChessBase"]
[SourceQuality "1"]
[TimeControl "40/5400+30:1800+30"]

1. d4 {[%emt 0:00:00]} g6 {[%emt 0:00:00]} 2. c4 {[%emt 0:00:00]} Bg7 {[%emt 0:00:00]} 3. Nc3 {[%emt 0:00:02]} d6 {[%emt 0:00:00]} 4. e4 {[%emt 0:00:25]} Nf6 {[%emt 0:00:09]} 5. Be2 {[%emt 0:01:04]} Nbd7 {[%emt 0:03:39]} 6. Nf3 {[%emt 0:00:33]} O-O {[%emt 0:00:36]} 7. O-O {[%emt 0:00:34]} e5 {[%emt 0:00:38]} 8. d5 {[%emt 0:05:15]} h6 {[%emt 0:08:29]} 9. Ne1 {[%emt 0:03:35]} Nc5 {[%emt 0:11:01]} 10. f3 {[%emt 0:00:46]} a5 {[%emt 0:02:55]} 11. Nd3 {[%emt 0:03:05]} Nfd7 {[%emt 0:02:57]} 12. Be3 {[%emt 0:00:34]} b6 {[%emt 0:03:08]} 13. a3 {[%emt 0:03:21]} Nxd3 {[%emt 0:17:16]} 14. Bxd3 {[%emt 0:02:05]} f5 {[%emt 0:04:20]} 15. b4 {[%emt 0:03:32]} f4 {[%emt 0:02:41]} 16. Bf2 {[%emt 0:04:22]} Nf6 {[%emt 0:03:36]} 17. c5 {[%emt 0:06:32]} axb4 {[%emt 0:03:00]} 18. axb4 {[%emt 0:00:09]} Rxa1 {[%emt 0:00:06]} 19. Qxa1 {[%emt 0:00:06]} bxc5 {[%emt 0:00:04]} 20. bxc5 {[%emt 0:00:09]} g5 {[%emt 0:01:46]} 21. Qa5 {[%emt 0:09:01]} Ne8 {[%emt 0:10:56]} 22. cxd6 {[%emt 0:05:11]} Nxd6 {[%emt 0:00:28]} 23. Nb5 {[%emt 0:01:59]} Bf6 {[%emt 0:04:34]} 24. Qxc7 {[%emt 0:08:52]} Qxc7 {[%emt 0:08:44]} 25. Nxc7 {[%emt 0:00:06]} Bd7 {[%emt 0:02:07]} 26. Na6 {[%emt 0:04:29]} Rc8 {[%emt 0:01:16]} 27. Rb1 {[%emt 0:02:22]} Rc3 {[%emt 0:02:32]} 28. Bf1 {[%emt 0:01:38]} Kf7 {[%emt 0:01:17]} 29. Be1 {[%emt 0:03:10]} Rc8 {[%emt 0:01:06]} 30. Bd2 {[%emt 0:04:00]} Rc2 {[%emt 0:01:28]} 31. Ba5 {[%emt 0:02:04]} Ra2 {[%emt 0:01:31]} 32. Bc7 {[%emt 0:00:51]} Nb5 {[%emt 0:02:10]} 33. Bxb5 {[%emt 0:02:01]} Bxb5 34. Rxb5 {[%emt 0:02:30]} Rxa6 {[%emt 0:00:19]} 35. Ra5 {[%emt 0:01:46]} Rxa5 {[%emt 0:00:45]} 36. Bxa5 {[%emt 0:00:05]} Ke8 {[%emt 0:00:39]} 37. Kf1 {[%emt 0:00:28]} Kd7 {[%emt 0:00:08]} 38. Ke2 {[%emt 0:00:09]} Be7 {[%emt 0:00:21]} 39. Kd3 {[%emt 0:00:11]} h5 {[%emt 0:00:28]} 40. h3 {[%emt 0:00:32]} Bd6 {[%emt 0:01:33]} 41. Kc4 {[%emt 0:30:20]} Bb8 {[%emt 0:30:25]} 42. Bb4 {[%emt 0:00:44]} Ba7 {[%emt 0:00:28]} 43. Bf8 {[%emt 0:02:31]} Bb6 {[%emt 0:00:46]} 44. Bg7 {[%emt 0:00:46]} Bc7 {[%emt 0:00:55]} 45. Bf6 {[%emt 0:00:11]} Bd6 {[%emt 0:00:23]} 46. Bxg5 {[%emt 0:00:18]} Ba3 {[%emt 0:00:34]} 47. Bh4 {[%emt 0:00:29]} Bc1 {[%emt 0:00:06]} 48. Bf2 {[%emt 0:01:00]} Bd2 {[%emt 0:00:24]} 49. g3 {[%emt 0:02:33]} Kd6 50. g4 {[%emt 0:00:19]} hxg4 {[%emt 0:00:37]} 51. hxg4 {[%emt 0:00:06]} Ba5 {[%emt 0:00:07]} 52. Bh4 {[%emt 0:01:02]} Bc7 {[%emt 0:01:22]} 53. Bf6 {[%emt 0:00:34]} Kd7 {[%emt 0:00:06]} 54. g5 {[%emt 0:00:27]} Bd6 {[%emt 0:00:46]} 55. Kb5 {[%emt 0:00:40]} Ke8 {[%emt 0:00:06]} 56. Kc6 {[%emt 0:00:10]} Be7 {[%emt 0:00:04]} 57. Bxe7 {[%emt 0:00:07]} Kxe7 {[%emt 0:00:03]} 58. d6+ {[%emt 0:00:09]} Kf7 {[%emt 0:00:03]} 1-0

[Event "55th Rubinstein Memorial-C 2019"]
[Site "Polanica-Zdroj"]
[Date "2019.08.25"]
[Round "9.28"]
[White "Nowak, Filip"]
[Black "Zyla, Tomasz"]
[Result "1/2-1/2"]
[ECO "B60"]
[WhiteElo "1616"]
[BlackElo "1471"]
[Annotator "NA"]
[PlyCount "137"]
[EventDate "2019.08.17"]
[EventType "swiss"]
[EventCountry "POL"]
[SourceTitle "playchess.com"]
[Source "ChessBase"]
[SourceQuality "1"]
[TimeControl "40/5400+30:1800+30"]

1. e4 {[%emt 0:00:00]} c5 {[%emt 0:00:00]} 2. Nf3 {[%emt 0:00:00]} Nc6 {[%emt 0:00:03]} 3. d4 {[%emt 0:00:00]} cxd4 {[%emt 0:00:05]} 4. Nxd4 {[%emt 0:00:01]} Nf6 {[%emt 0:01:32]} 5. Nc3 {[%emt 0:04:01]} d6 {[%emt 0:00:18]} 6. Bg5 {[%emt 0:00:41]} e5 {[%emt 0:07:34]} 7. Nb3 {[%emt 0:02:44]} Be7 {[%emt 0:02:41]} 8. f3 {[%emt 0:02:18]} Be6 {[%emt 0:03:41]} 9. Qd2 {[%emt 0:01:54]} O-O {[%emt 0:02:48]} 10. O-O-O {[%emt 0:01:12]} Qb6 {[%emt 0:15:06]} 11. Be3 {[%emt 0:05:44]} Qc7 {[%emt 0:07:01]} 12. Nd5 {[%emt 0:05:07]} Bxd5 {[%emt 0:02:20]} 13. exd5 {[%emt 0:00:02]} Nb8 {[%emt 0:00:29]} 14. g4 {[%emt 0:03:54]} Nbd7 {[%emt 0:09:35]} 15. g5 {[%emt 0:02:09]} Nh5 {[%emt 0:00:45]} 16. Bh3 {[%emt 0:02:40]} g6 {[%emt 0:02:34]} 17. Bg4 {[%emt 0:02:23]} Ng7 {[%emt 0:00:25]} 18. h4 {[%emt 0:01:45]} f5 {[%emt 0:14:27]} 19. gxf6 {[%emt 0:02:37]} Nxf6 {[%emt 0:00:54]} 20. Bh6 {[%emt 0:13:47]} Nxg4 {[%emt 0:06:46]} 21. fxg4 {[%emt 0:02:01]} Qd8 {[%emt 0:01:13]} 22. Bg5 {[%emt 0:05:34]} Ne8 {[%emt 0:05:59]} 23. Rdg1 {[%emt 0:06:52]} Nf6 {[%emt 0:02:09]} 24. Bxf6 {[%emt 0:01:36]} Bxf6 {[%emt 0:00:34]} 25. g5 {[%emt 0:04:52]} Be7 {[%emt 0:00:16]} 26. Kb1 {[%emt 0:00:25]} Rf5 {[%emt 0:00:22]} 27. Qh2 {[%emt 0:01:21]} Qe8 {[%emt 0:02:25]} 28. Nd2 {[%emt 0:08:04]} Qf7 {[%emt 0:00:46]} 29. Nc4 {[%emt 0:04:33]} Rf2 {[%emt 0:03:35]} 30. Qg3 {[%emt 0:05:12]} Rf3 {[%emt 0:00:13]} 31. Qg2 {[%emt 0:01:08]} Rc8 {[%emt 0:02:38]} 32. b3 {[%emt 0:02:26]} b5 {[%emt 0:02:18]} 33. Nd2 {[%emt 0:00:13]} Rf2 {[%emt 0:00:52]} 34. Qg4 {[%emt 0:00:16]} Qf5 {[%emt 0:00:34]} 35. Qxf5 {[%emt 0:00:25]} gxf5 {[%emt 0:00:05]} 36. Kc1 {[%emt 0:01:09]} Rc3 {[%emt 0:01:17]} 37. Kd1 {[%emt 0:03:02]} Re3 {[%emt 0:01:31]} 38. Re1 {[%emt 0:00:45]} Rxe1+ {[%emt 0:00:29]} 39. Kxe1 {[%emt 0:00:03]} Rf4 {[%emt 0:00:33]} 40. Ke2 {[%emt 0:00:40]} Bd8 {[%emt 0:00:57]} 41. c4 {[%emt 0:31:16]} a6 {[%emt 0:30:01]} 42. Rh2 {[%emt 0:01:05]} Kg7 {[%emt 0:00:22]} 43. cxb5 {[%emt 0:00:45]} axb5 {[%emt 0:00:02]} 44. Nf3 {[%emt 0:00:23]} Rg4 {[%emt 0:00:53]} 45. a3 {[%emt 0:03:10]} h6 {[%emt 0:00:43]} 46. Kf2 {[%emt 0:01:18]} hxg5 {[%emt 0:00:40]} 47. hxg5 {[%emt 0:00:02]} Bxg5 {[%emt 0:00:03]} 48. Nxg5 {[%emt 0:00:19]} Rxg5 {[%emt 0:00:01]} 49. Kf3 {[%emt 0:00:43]} Kf6 {[%emt 0:02:22]} 50. Rh6+ {[%emt 0:00:55]} Ke7 {[%emt 0:00:29]} 51. a4 {[%emt 0:00:07]} bxa4 {[%emt 0:00:33]} 52. bxa4 {[%emt 0:00:01]} Rg4 {[%emt 0:00:56]} 53. a5 {[%emt 0:00:39]} Ra4 {[%emt 0:00:09]} 54. Rh7+ {[%emt 0:00:03]} Kd8 {[%emt 0:00:54]} 55. Rh8+ {[%emt 0:01:07]} Kc7 {[%emt 0:00:17]} 56. Rh7+ {[%emt 0:00:07]} Kc8 {[%emt 0:00:16]} 57. Rh8+ {[%emt 0:00:11]} Kc7 {[%emt 0:00:02]} 58. Rh7+ {[%emt 0:00:04]} Kc8 {[%emt 0:00:53]} 59. Rh8+ {[%emt 0:00:04]} Kd7 {[%emt 0:00:20]} 60. Rh7+ {[%emt 0:00:14]} Kc8 {[%emt 0:00:03]} 61. Rh8+ {[%emt 0:00:08]} Kb7 {[%emt 0:00:23]} 62. Rh7+ {[%emt 0:00:07]} Ka6 {[%emt 0:00:46]} 63. Rd7 {[%emt 0:00:12]} Kxa5 {[%emt 0:00:21]} 64. Rxd6 {[%emt 0:00:04]} Rd4 {[%emt 0:00:59]} 65. Rf6 {[%emt 0:00:59]} f4 {[%emt 0:00:59]} 66. d6 {[%emt 0:00:19]} Kb6 {[%emt 0:00:20]} 67. Re6 {[%emt 0:00:51]} Kc6 {[%emt 0:01:10]} 68. Rxe5 {[%emt 0:00:28]} Rd3+ {[%emt 0:00:35]} 69. Kxf4 {[%emt 0:01:06]} 1/2-1/2